[Event "Polonia Wroclaw Masters Cup-IM"]
[Site "Wroclaw"]
[Date "2019.04.28"]
[Round "1.1"]
[White "Czopor, Maciej"]
[Black "Krzywda, Andrzej"]
[Result "1/2-1/2"]
[ECO "B81"]
[WhiteElo "2229"]
[BlackElo "2195"]
[Annotator "NA"]
[PlyCount "77"]
[EventDate "2019.04.28"]
[EventType "tourn"]
[EventCountry "POL"]
[SourceTitle "playchess.com"]
[Source "ChessBase"]
[SourceQuality "1"]
[TimeControl "40/5400+30:900+30"]

1. e4 {[%emt 0:00:00]} c5 {[%emt 0:00:00]} 2. Nf3 {[%emt 0:00:00]} e6 {[%emt 0:00:07]} 3. d4 {[%emt 0:00:01]} cxd4 {[%emt 0:00:05]} 4. Nxd4 {[%emt 0:00:15]} Nf6 {[%emt 0:00:19]} 5. Nc3 {[%emt 0:00:21]} d6 {[%emt 0:00:12]} 6. g4 {[%emt 0:00:47]} h6 {[%emt 0:00:58]} 7. g5 {[%emt 0:00:54]} hxg5 {[%emt 0:01:09]} 8. Bxg5 {[%emt 0:00:39]} Nc6 {[%emt 0:01:16]} 9. Qd2 {[%emt 0:01:10]} Qb6 {[%emt 0:01:59]} 10. Nb3 {[%emt 0:00:43]} a6 {[%emt 0:01:08]} 11. O-O-O {[%emt 0:03:03]} Bd7 {[%emt 0:01:37]} 12. h4 {[%emt 0:05:12]} Be7 {[%emt 0:04:47]} 13. f4 {[%emt 0:03:42] B81: Sicilian Scheveningen: Keres Attack} (13. Be2 Qc7 14. h5 O-O-O 15. Kb1 Kb8 16. Be3 Bc8 17. f4 b5 18. Bf3 Bb7 19. Rhg1 Bf8 20. Qf2 Nd7 21. Be2 {1-0 (50) Aravindh,C (2543)-Arjun,K (2292) Bhubaneswar 2016}) 13... O-O-O {[%emt 0:07:13]} 14. Be2 {[%emt 0:02:25]} Kb8 {[%emt 0:04:32]} 15. h5 {[%emt 0:03:19]} Bc8 {[%emt 0:04:41]} 16. Bf3 {[%emt 0:02:32]} Na5 {[%emt 0:16:42]} 17. Qe2 $146 {[%emt 0:02:07]} ({Predecessor:} 17. Nxa5 Qxa5 18. Qe3 Bd7 19. Bh4 Bc6 20. Bf2 {½-½ (35) Browne,W-Hutchings,S Nice 1974}) 17... Nxb3+ {[%emt 0:03:36]} 18. axb3 {[%emt 0:00:15]} Ng8 {[%emt 0:07:25]} 19. Rhg1 {[%emt 0:03:17]} Bf6 {[%emt 0:02:27]} 20. Rg2 {[%emt 0:10:51]} Nh6 {[%emt 0:01:41]} 21. Rd3 {[%emt 0:01:18]} Rhe8 {[%emt 0:05:20]} 22. Qd1 {[%emt 0:03:09]} Qc5 $16 {[%emt 0:07:40]} 23. Kb1 {[%emt 0:03:54]} b5 {[%emt 0:03:58]} 24. Bxf6 {[%emt 0:01:59]} gxf6 {[%emt 0:00:04]} 25. Rgd2 {[%emt 0:01:47]} Rg8 {[%emt 0:00:54]} 26. Ne2 {[%emt 0:01:03]} Bb7 {[%emt 0:03:24]} 27. Rxd6 {[%emt 0:01:21]} Rxd6 {[%emt 0:03:22]} 28. Rxd6 {[%emt 0:00:12]} f5 {[%emt 0:02:40]} 29. Rd8+ {[%emt 0:13:53]} Rxd8 {[%emt 0:01:21]} 30. Qxd8+ {[%emt 0:00:26]} Ka7 {[%emt 0:00:15]} 31. Qd3 {[%emt 0:00:24]} fxe4 {[%emt 0:02:40]} 32. Bxe4 {[%emt 0:00:35]} Bxe4 {[%emt 0:00:31]} 33. Qxe4 {[%emt 0:00:08]} Qxh5 {[%emt 0:00:35]} 34. Qd4+ {[%emt 0:01:28]} Kb7 {[%emt 0:00:54]} 35. Qd7+ {[%emt 0:00:13]} Kb6 {[%emt 0:01:54]} 36. Qd8+ {[%emt 0:02:14]} Kb7 {[%emt 0:01:17]} 37. Qd7+ {[%emt 0:13:33]} Kb6 {[%emt 0:00:14]} 38. Qd6+ {[%emt 0:00:19]} Kb7 {[%emt 0:00:07]} 39. Qd7+ {[%emt 0:00:53]} 1/2-1/2

[Event "Polonia Wroclaw Masters Cup-IM"]
[Site "Wroclaw"]
[Date "2019.04.28"]
[Round "1.4"]
[White "Baum, Jonasz"]
[Black "Praczukowski, Stanislaw"]
[Result "1-0"]
[ECO "D30"]
[WhiteElo "2290"]
[BlackElo "2190"]
[Annotator "NA"]
[PlyCount "85"]
[EventDate "2019.04.28"]
[EventType "tourn"]
[EventCountry "POL"]
[SourceTitle "playchess.com"]
[Source "ChessBase"]
[SourceQuality "1"]
[TimeControl "40/5400+30:900+30"]

1. d4 {[%emt 0:00:00]} d5 {[%emt 0:00:00]} 2. c4 {[%emt 0:00:13]} e6 {[%emt 0:00:08]} 3. Nf3 {[%emt 0:00:06]} a6 {[%emt 0:00:17]} 4. Nbd2 {[%emt 0:00:23]} (4. e3 Nf6 5. Nc3 dxc4 6. Bxc4 b5 7. Be2 Bb7 8. O-O Nbd7 9. b3 c5 10. Bb2 Be7 11. Rc1 O-O 12. Qc2 Rc8 13. Qb1 Qb6 14. Rfd1 Rfd8 15. h3 h6 16. dxc5 Nxc5 17. Rxd8+ Rxd8 {0-1 (59) Mamedyarov,S (2817)-Carlsen,M (2835) St Petersburg 2018}) 4... dxc4 {[%emt 0:01:16]} 5. Nxc4 {[%emt 0:00:04]} b5 {[%emt 0:00:14]} 6. Nce5 {[%emt 0:00:08] D30: Queen's Gambit Declined: Systems without Nc3} Bb7 {[%emt 0:00:25]} 7. e3 {[%emt 0:06:23]} Nf6 {[%emt 0:03:17]} 8. Bd3 $146 {[%emt 0:01:59]} ({Predecessor:} 8. a4 Qd5 9. Bd3 Be7 10. Qe2 b4 11. Bc4 Qe4 12. Nxf7 {1-0 (12) Fischer,M (2224)-Chiaretti,R (2195) Rome 2009}) 8... Bd6 {[%emt 0:05:27]} 9. O-O {[%emt 0:00:10]} O-O {[%emt 0:02:09]} 10. Qc2 {[%emt 0:01:12]} Bxf3 {[%emt 0:13:41]} 11. Nxf3 {[%emt 0:01:52]} Nbd7 {[%emt 0:00:14]} 12. e4 {[%emt 0:14:17]} e5 {[%emt 0:02:41]} 13. d5 {[%emt 0:01:46]} Nh5 {[%emt 0:12:51]} 14. g3 {[%emt 0:04:01]} Qf6 {[%emt 0:07:36]} 15. Be2 {[%emt 0:06:23]} g6 {[%emt 0:07:36]} 16. Bh6 {[%emt 0:05:04]} Rfe8 {[%emt 0:00:52]} 17. Be3 {[%emt 0:01:23]} Qe7 {[%emt 0:08:04]} 18. Rac1 {[%emt 0:05:20]} Ng7 {[%emt 0:03:47]} 19. Nh4 {[%emt 0:07:25]} Rf8 {[%emt 0:08:40]} 20. Bd3 {[%emt 0:01:21]} Nh5 {[%emt 0:04:28]} 21. Ng2 {[%emt 0:01:01]} Ng7 {[%emt 0:03:24]} 22. f3 {[%emt 0:14:02]} f5 {[%emt 0:01:20]} 23. Qc6 {[%emt 0:05:04]} f4 {[%emt 0:03:43]} 24. Bf2 {[%emt 0:03:26]} fxg3 {[%emt 0:01:08]} 25. hxg3 {[%emt 0:00:15]} Nh5 {[%emt 0:04:22]} 26. Be2 {[%emt 0:01:57]} Kh8 {[%emt 0:00:49]} 27. a3 {[%emt 0:04:57]} Ndf6 {[%emt 0:01:12]} 28. b4 {[%emt 0:01:26]} Ng8 {[%emt 0:00:29]} 29. g4 {[%emt 0:02:51]} Nf4 {[%emt 0:01:39]} 30. Nxf4 {[%emt 0:00:02]} exf4 {[%emt 0:00:05]} 31. Bd4+ {[%emt 0:00:23]} Be5 {[%emt 0:01:45]} 32. Qc3 {[%emt 0:01:36]} Bxd4+ {[%emt 0:01:46]} 33. Qxd4+ {[%emt 0:00:02]} Qf6 {[%emt 0:00:33]} 34. Qxf6+ {[%emt 0:01:23]} Nxf6 {[%emt 0:00:02]} 35. Rxc7 {[%emt 0:00:11]} Rfe8 {[%emt 0:00:17]} 36. Kf2 {[%emt 0:00:55]} h5 {[%emt 0:00:12]} 37. gxh5 {[%emt 0:03:36]} g5 {[%emt 0:00:04]} 38. Rf7 {[%emt 0:01:11]} Ng8 {[%emt 0:00:22]} 39. Rf5 {[%emt 0:00:28]} Rac8 {[%emt 0:00:52]} 40. d6 {[%emt 0:00:00]} Rcd8 {[%emt 0:00:00]} 41. Rd1 {[%emt 0:04:54]} Re6 {[%emt 0:01:42]} 42. d7 {[%emt 0:04:09]} Re7 $18 {[%emt 0:00:14]} 43. Rxg5 {[%emt 0:01:22]} 1-0

[Event "Polonia Wroclaw Masters Cup-IM"]
[Site "Wroclaw"]
[Date "2019.04.28"]
[Round "1.5"]
[White "Mahitosh Dey"]
[Black "Fiedorek, Michal"]
[Result "1/2-1/2"]
[ECO "B56"]
[WhiteElo "2187"]
[BlackElo "2075"]
[Annotator "NA"]
[PlyCount "114"]
[EventDate "2019.04.28"]
[EventType "tourn"]
[EventCountry "POL"]
[SourceTitle "playchess.com"]
[Source "ChessBase"]
[SourceQuality "1"]
[TimeControl "40/5400+30:900+30"]

1. e4 c5 2. Nf3 d6 3. d4 cxd4 4. Nxd4 Nf6 5. Nc3 Nc6 6. f3 e5 7. Nb3 Be7 8. Be3 O-O 9. Be2 a5 10. Nd5 {[%emt 0:08:33]} Nxd5 11. exd5 Nb8 12. O-O Bg5 {[%emt 0:20:16]} 13. Bf2 {[%emt 0:01:08]} Nd7 {[%emt 0:07:36]} 14. Nd2 {[%emt 0:01:51]} Qc7 {[%emt 0:04:17]} 15. Ne4 {[%emt 0:01:01]} Bh6 {[%emt 0:01:56]} 16. c4 {[%emt 0:00:30]} b6 {[%emt 0:01:19]} 17. Qa4 {[%emt 0:03:40]} f5 {[%emt 0:09:58]} 18. Nc3 {[%emt 0:04:28]} Ba6 {[%emt 0:02:25]} 19. Qc6 {[%emt 0:02:40]} Rac8 {[%emt 0:04:18]} 20. Qxc7 {[%emt 0:00:05]} Rxc7 {[%emt 0:00:05]} 21. b3 {[%emt 0:00:08]} Nc5 {[%emt 0:08:30]} 22. Rfd1 {[%emt 0:02:49]} g6 {[%emt 0:01:38]} 23. Rab1 {[%emt 0:01:09]} Re8 {[%emt 0:11:32]} 24. b4 {[%emt 0:01:19]} axb4 {[%emt 0:08:43]} 25. Rxb4 {[%emt 0:00:37]} Rb8 {[%emt 0:03:29]} 26. Rdb1 {[%emt 0:03:03]} Bd2 {[%emt 0:07:53]} 27. Rxb6 {[%emt 0:00:53]} Rxb6 {[%emt 0:00:26]} 28. Rxb6 {[%emt 0:00:05]} Bxc3 {[%emt 0:02:35]} 29. Bxc5 {[%emt 0:00:05]} Rxc5 {[%emt 0:05:07]} 30. Rxa6 {[%emt 0:00:08]} Ra5 {[%emt 0:00:06]} 31. Rxa5 {[%emt 0:00:33]} Bxa5 {[%emt 0:00:08]} 32. Kf2 {[%emt 0:00:03]} Kf7 {[%emt 0:02:26]} 33. Ke3 {[%emt 0:00:05]} Ke7 {[%emt 0:00:56]} 34. g4 {[%emt 0:00:56]} f4+ {[%emt 0:00:36]} 35. Ke4 {[%emt 0:00:24]} Bb6 {[%emt 0:00:19]} 36. Kd3 {[%emt 0:00:07]} Kd7 {[%emt 0:00:30]} 37. Kc3 {[%emt 0:00:06]} Bc5 {[%emt 0:00:11]} 38. Bd3 {[%emt 0:00:10]} Kc7 {[%emt 0:00:37]} 39. h4 {[%emt 0:01:01]} Bf2 {[%emt 0:00:47]} 40. h5 {[%emt 0:00:00]} Be1+ {[%emt 0:00:00]} 41. Kc2 {[%emt 0:01:43]} gxh5 {[%emt 0:02:27]} 42. gxh5 {[%emt 0:00:46]} h6 {[%emt 0:00:25]} 43. c5 {[%emt 0:00:03]} dxc5 {[%emt 0:06:19]} 44. Bc4 {[%emt 0:00:04]} e4 {[%emt 0:07:32]} 45. fxe4 {[%emt 0:00:09]} Kd6 {[%emt 0:00:05]} 46. Kb3 {[%emt 0:01:21]} Ke5 {[%emt 0:00:23]} 47. Ka4 {[%emt 0:00:04]} Kxe4 {[%emt 0:00:57]} 48. Kb5 {[%emt 0:00:03]} Kd4 {[%emt 0:00:16]} 49. a4 {[%emt 0:01:47]} f3 {[%emt 0:01:24]} 50. d6 {[%emt 0:00:09]} f2 {[%emt 0:00:57]} 51. d7 {[%emt 0:00:12]} Ba5 {[%emt 0:00:08]} 52. Bf1 {[%emt 0:00:09]} Bd8 {[%emt 0:00:31]} 53. a5 {[%emt 0:00:20]} c4 {[%emt 0:00:05]} 54. Bxc4 {[%emt 0:02:40]} Bxa5 {[%emt 0:00:13]} 55. Bf1 {[%emt 0:00:06]} Bd8 {[%emt 0:00:43]} 56. Kc6 {[%emt 0:00:04]} Ke5 {[%emt 0:00:44]} 57. Kb7 {[%emt 0:00:12]} Kd6 {[%emt 0:00:32]} 1/2-1/2

[Event "Polonia Wroclaw Masters Cup-IM"]
[Site "Wroclaw"]
[Date "2019.04.30"]
[Round "3.3"]
[White "Baum, Jonasz"]
[Black "Martynyuk, Elizaveta"]
[Result "1/2-1/2"]
[ECO "E09"]
[WhiteElo "2290"]
[BlackElo "2141"]
[Annotator "NA"]
[PlyCount "143"]
[EventDate "2019.04.28"]
[EventType "tourn"]
[EventCountry "POL"]
[SourceTitle "playchess.com"]
[Source "ChessBase"]
[SourceQuality "1"]
[TimeControl "40/5400+30:900+30"]

1. d4 {[%emt 0:00:00]} d5 {[%emt 0:05:19]} 2. c4 {[%emt 0:00:00]} e6 {[%emt 0:00:08]} 3. Nf3 {[%emt 0:00:00]} Be7 {[%emt 0:00:13]} 4. g3 {[%emt 0:00:13]} Nf6 {[%emt 0:00:42]} 5. Bg2 {[%emt 0:00:06]} O-O {[%emt 0:01:14]} 6. O-O {[%emt 0:00:07]} Nbd7 {[%emt 0:01:16]} 7. Nbd2 {[%emt 0:01:17]} c6 {[%emt 0:01:29]} 8. Qc2 {[%emt 0:00:07]} Qc7 {[%emt 0:01:18]} 9. e4 {[%emt 0:00:26]} dxe4 {[%emt 0:00:33]} 10. Nxe4 {[%emt 0:00:01]} e5 {[%emt 0:01:16]} 11. dxe5 {[%emt 0:05:36]} Nxe5 {[%emt 0:00:06]} 12. Nxe5 {[%emt 0:03:25]} Qxe5 {[%emt 0:01:55]} 13. Bf4 {[%emt 0:00:09]} Qh5 {[%emt 0:08:01]} 14. Nxf6+ {[%emt 0:10:54]} (14. Bd6 $14 Re8 15. Bxe7 Rxe7 16. Nxf6+ gxf6 17. Rae1 Rxe1 18. Rxe1) 14... Bxf6 $11 {[%emt 0:00:09]} 15. Rfe1 {[%emt 0:19:17]} Bf5 {[%emt 0:06:51]} 16. Qb3 {[%emt 0:00:53]} h6 {[%emt 0:14:25]} 17. Qxb7 {[%emt 0:04:08]} Rad8 {[%emt 0:00:28]} 18. Qxc6 {[%emt 0:01:40]} Bxb2 {[%emt 0:02:16]} 19. Bf3 {[%emt 0:00:31]} Bg4 {[%emt 0:00:35]} 20. Bxg4 {[%emt 0:00:21]} Qxg4 {[%emt 0:00:10]} 21. Rab1 {[%emt 0:00:12]} Bc3 {[%emt 0:00:40]} 22. Re7 {[%emt 0:13:47]} a5 {[%emt 0:04:18]} 23. Kg2 {[%emt 0:03:55]} Bd2 {[%emt 0:03:17]} 24. Qf3 {[%emt 0:08:02]} Qxf3+ {[%emt 0:13:41]} 25. Kxf3 {[%emt 0:00:02]} Bxf4 {[%emt 0:00:57]} 26. gxf4 {[%emt 0:00:12]} Rd2 {[%emt 0:01:44]} 27. Re2 {[%emt 0:00:33]} Rd3+ {[%emt 0:00:31]} 28. Re3 {[%emt 0:01:28]} Rd2 {[%emt 0:00:10]} 29. Rc3 {[%emt 0:17:25]} Rxa2 {[%emt 0:04:02]} 30. c5 {[%emt 0:00:04]} Ra4 {[%emt 0:03:59]} 31. c6 {[%emt 0:05:16]} Rb4 {[%emt 0:00:38]} 32. Rbc1 {[%emt 0:00:55]} Rc8 {[%emt 0:00:36]} 33. c7 {[%emt 0:00:17]} Kh7 {[%emt 0:02:50]} 34. Rd3 {[%emt 0:03:39]} Rb7 {[%emt 0:00:17]} 35. Rd7 {[%emt 0:00:17]} a4 {[%emt 0:02:44]} 36. Rxf7 {[%emt 0:00:10]} Kg6 {[%emt 0:00:10]} 37. Rd7 {[%emt 0:00:08]} a3 {[%emt 0:00:06]} 38. Ke4 {[%emt 0:02:47]} a2 {[%emt 0:00:35]} 39. f5+ {[%emt 0:00:25]} Kh7 {[%emt 0:01:43]} 40. Ra1 {[%emt 0:00:00]} Rcxc7 {[%emt 0:00:00]} 41. Rxc7 {[%emt 0:00:47]} Rxc7 {[%emt 0:00:33]} 42. Rxa2 {[%emt 0:00:02]} Kg8 {[%emt 0:01:02]} 43. h3 {[%emt 0:08:26]} Kf7 {[%emt 0:00:09]} 44. Ra6 {[%emt 0:00:19]} Re7+ {[%emt 0:00:17]} 45. Kf4 {[%emt 0:00:11]} Rb7 {[%emt 0:00:21]} 46. Kg4 {[%emt 0:00:24]} Rb4+ {[%emt 0:00:14]} 47. f4 {[%emt 0:00:16]} Rb3 {[%emt 0:01:02]} 48. Rg6 {[%emt 0:01:04]} h5+ {[%emt 0:01:19]} 49. Kh4 {[%emt 0:01:19]} Rf3 {[%emt 0:00:06]} 50. Ra6 {[%emt 0:01:26]} Rxf4+ {[%emt 0:00:28]} 51. Kg5 {[%emt 0:00:04]} Rf1 {[%emt 0:00:42]} 52. Ra7+ {[%emt 0:00:17]} Kf8 {[%emt 0:00:42]} 53. h4 {[%emt 0:01:11]} Rg1+ {[%emt 0:00:04]} 54. Kxh5 {[%emt 0:00:07]} Rf1 {[%emt 0:00:26]} 55. Kg4 {[%emt 0:03:41]} Rg1+ {[%emt 0:00:14]} 56. Kh3 {[%emt 0:01:18]} Rh1+ {[%emt 0:00:09]} 57. Kg3 {[%emt 0:00:13]} Rg1+ {[%emt 0:00:05]} 58. Kf4 {[%emt 0:01:11]} Rf1+ {[%emt 0:00:08]} 59. Kg4 {[%emt 0:00:18]} Rg1+ {[%emt 0:00:06]} 60. Kh3 {[%emt 0:00:04]} Rh1+ {[%emt 0:00:06]} 61. Kg3 {[%emt 0:00:05]} Rg1+ {[%emt 0:00:24]} 62. Kh2 {[%emt 0:00:40]} Rf1 {[%emt 0:00:06]} 63. Ra5 {[%emt 0:00:05]} Kf7 {[%emt 0:00:05]} 64. Kg2 {[%emt 0:00:06]} Rf4 {[%emt 0:00:04]} 65. Kg3 {[%emt 0:00:15]} Rb4 {[%emt 0:00:03]} 66. Ra6 {[%emt 0:00:52]} Rb1 {[%emt 0:00:13]} 67. Ra3 {[%emt 0:00:38]} Kf6 {[%emt 0:00:17]} 68. Rf3 {[%emt 0:00:08]} Rb5 {[%emt 0:00:11]} 69. Kg4 {[%emt 0:00:20]} Rb1 {[%emt 0:00:18]} 70. Rf2 {[%emt 0:01:28]} Rg1+ {[%emt 0:00:44]} 71. Kf4 {[%emt 0:00:03]} Rh1 {[%emt 0:00:32]} 72. Kg4 {[%emt 0:01:18]} 1/2-1/2

[Event "Polonia Wroclaw Masters Cup-IM"]
[Site "Wroclaw"]
[Date "2019.04.30"]
[Round "3.4"]
[White "Mahitosh Dey"]
[Black "Odnorozhenko, Evgenyi"]
[Result "1/2-1/2"]
[ECO "C45"]
[WhiteElo "2187"]
[BlackElo "2275"]
[Annotator "NA"]
[PlyCount "157"]
[EventDate "2019.04.28"]
[EventType "tourn"]
[EventCountry "POL"]
[SourceTitle "playchess.com"]
[Source "ChessBase"]
[SourceQuality "1"]
[TimeControl "40/5400+30:900+30"]

1. e4 {[%emt 0:02:33]} e5 {[%emt 0:01:01]} 2. Nf3 {[%emt 0:00:07]} Nc6 {[%emt 0:00:06]} 3. d4 {[%emt 0:00:02]} exd4 {[%emt 0:00:09]} 4. Nxd4 {[%emt 0:00:05]} Bc5 {[%emt 0:00:52]} 5. Nb3 {[%emt 0:00:06]} Bb6 {[%emt 0:00:07]} 6. Nc3 {[%emt 0:00:09]} d6 {[%emt 0:01:59]} 7. Qe2 {[%emt 0:00:05]} Nge7 {[%emt 0:02:16] C45: Scotch Game} 8. Be3 {[%emt 0:00:08]} Be6 {[%emt 0:01:21]} (8... O-O 9. O-O-O f5 10. f4 fxe4 11. g3 Bxe3+ 12. Qxe3 Nf5 13. Bc4+ Kh8 14. Qe2 e3 15. Rhf1 {1-0 (39) Navara,D (2739)-Laznicka,V (2670) Prague 2019}) 9. O-O-O {[%emt 0:00:08]} Qd7 {[%emt 0:00:44]} 10. f3 {[%emt 0:00:19]} O-O-O {[%emt 0:00:58]} 11. Bxb6 {[%emt 0:00:14]} axb6 {[%emt 0:00:08]} 12. Nd4 $146 {[%emt 0:00:07]} ({Predecessor:} 12. Qe3 Kb8 13. Bb5 Bxb3 14. axb3 Qe6 15. Rhe1 {½-½ (78) Oglaza,O (2310)-Rohit,K (2403) St Petersburg 2018}) 12... Kb8 {[%emt 0:02:03]} 13. Nxe6 {[%emt 0:00:37]} Qxe6 {[%emt 0:00:28]} 14. Qb5 {[%emt 0:03:31]} Qe5 {[%emt 0:05:14]} 15. Bc4 {[%emt 0:01:40]} Qxb5 {[%emt 0:00:18]} 16. Bxb5 {[%emt 0:02:29]} Ne5 {[%emt 0:01:41]} 17. f4 {[%emt 0:00:29]} N5c6 {[%emt 0:00:35]} 18. Rhe1 {[%emt 0:01:01]} Ng6 {[%emt 0:04:29]} 19. g3 {[%emt 0:00:10]} Nce7 {[%emt 0:01:22]} 20. Bc4 {[%emt 0:00:20]} Rhf8 {[%emt 0:02:11]} 21. h4 {[%emt 0:00:25]} c6 {[%emt 0:00:08]} 22. h5 {[%emt 0:00:20]} Nh8 {[%emt 0:00:02]} 23. g4 {[%emt 0:02:22]} f6 {[%emt 0:00:20]} 24. Ne2 {[%emt 0:01:20]} b5 {[%emt 0:01:55]} 25. Bb3 {[%emt 0:00:06]} Nc8 {[%emt 0:00:55]} 26. Nd4 {[%emt 0:00:22]} Rfe8 {[%emt 0:00:51]} 27. c3 $16 {[%emt 0:01:49]} Ka7 {[%emt 0:04:21]} 28. Be6 {[%emt 0:01:51]} Nb6 {[%emt 0:00:47]} 29. Bb3 {[%emt 0:00:13]} Nc8 {[%emt 0:00:02]} 30. Nf5 {[%emt 0:07:49]} Rd7 {[%emt 0:00:31]} 31. e5 {[%emt 0:00:38]} fxe5 {[%emt 0:00:25]} 32. fxe5 {[%emt 0:00:04]} d5 {[%emt 0:00:08]} 33. e6 {[%emt 0:00:21]} Rc7 {[%emt 0:00:07]} 34. Re2 {[%emt 0:03:45]} g6 {[%emt 0:01:47]} 35. Nd4 {[%emt 0:00:05]} gxh5 {[%emt 0:05:35]} 36. gxh5 {[%emt 0:00:11]} Rg7 {[%emt 0:00:16]} 37. Rf1 {[%emt 0:01:24]} Rg5 {[%emt 0:02:07]} 38. Ref2 {[%emt 0:03:52]} Rgg8 {[%emt 0:02:34]} 39. Re1 {[%emt 0:03:24]} Nd6 {[%emt 0:00:45]} 40. Bc2 {[%emt 0:00:00]} Rg5 {[%emt 0:00:00]} 41. Nf5 {[%emt 0:00:26]} Ne4 {[%emt 0:03:06]} 42. Bxe4 {[%emt 0:00:38]} Rxe6 {[%emt 0:00:01]} 43. Nd4 {[%emt 0:01:17]} Re8 {[%emt 0:04:28]} 44. Nf3 {[%emt 0:01:35]} Rxh5 {[%emt 0:00:06]} 45. Bd3 {[%emt 0:00:09]} Rf8 {[%emt 0:00:21]} 46. Rh2 {[%emt 0:00:27]} Rxh2 {[%emt 0:06:19]} 47. Nxh2 {[%emt 0:01:06]} Ng6 {[%emt 0:00:08]} 48. Bxg6 {[%emt 0:00:14]} hxg6 {[%emt 0:00:06]} 49. Rg1 {[%emt 0:00:26]} Rf2 {[%emt 0:00:30]} 50. Ng4 {[%emt 0:00:03]} Rf4 {[%emt 0:00:17]} 51. Ne5 {[%emt 0:00:21]} d4 {[%emt 0:01:40]} 52. Nxg6 {[%emt 0:00:11]} Re4 {[%emt 0:00:02]} 53. cxd4 {[%emt 0:00:10]} Rxd4 {[%emt 0:00:04]} 54. Ne5 {[%emt 0:00:08]} Re4 {[%emt 0:00:22]} 55. Nd3 {[%emt 0:00:03]} b6 {[%emt 0:03:52]} 56. Re1 {[%emt 0:00:08]} Rd4 {[%emt 0:00:38]} 57. Kc2 {[%emt 0:00:23]} b4 {[%emt 0:01:20]} 58. Re7+ {[%emt 0:00:48]} Ka6 {[%emt 0:00:37]} 59. Re6 {[%emt 0:00:43]} Kb5 {[%emt 0:01:28]} 60. Rf6 {[%emt 0:01:03]} c5 {[%emt 0:01:34]} 61. b3 {[%emt 0:02:15]} Re4 {[%emt 0:01:02]} 62. Nb2 {[%emt 0:00:15]} Re2+ {[%emt 0:00:02]} 63. Kc1 {[%emt 0:00:04]} Re8 {[%emt 0:02:35]} 64. Nc4 {[%emt 0:00:53]} Rb8 {[%emt 0:00:02]} 65. Kd2 {[%emt 0:00:10]} Ka6 {[%emt 0:00:14]} 66. Kd3 {[%emt 0:00:13]} Ka7 {[%emt 0:00:40]} 67. Ke4 {[%emt 0:02:14]} Ka6 {[%emt 0:11:35]} 68. Kd5 {[%emt 0:00:53]} Rb7 {[%emt 0:00:15]} 69. Rd6 {[%emt 0:02:15]} Rb8 {[%emt 0:01:00]} 70. Kc6 {[%emt 0:02:07]} Rc8+ {[%emt 0:00:07]} 71. Kd7 {[%emt 0:00:07]} Rb8 {[%emt 0:00:06]} 72. Kc7 {[%emt 0:02:05]} Rb7+ {[%emt 0:00:32]} 73. Kc8 {[%emt 0:00:05]} Ka7 {[%emt 0:00:11]} 74. Rd7 {[%emt 0:00:25]} Rxd7 {[%emt 0:00:08]} 75. Kxd7 {[%emt 0:00:05]} b5 {[%emt 0:00:15]} 76. Kc6 {[%emt 0:01:17]} bxc4 {[%emt 0:00:06]} 77. bxc4 {[%emt 0:00:04]} Ka6 {[%emt 0:00:15]} 78. Kxc5 {[%emt 0:00:02]} Ka5 {[%emt 0:00:11]} 79. Kd6 {[%emt 0:00:10]} 1/2-1/2

[Event "Polonia Wroclaw Masters Cup-IM"]
[Site "Wroclaw"]
[Date "2019.04.30"]
[Round "3.5"]
[White "Fiedorek, Michal"]
[Black "Praczukowski, Stanislaw"]
[Result "1/2-1/2"]
[ECO "B13"]
[WhiteElo "2075"]
[BlackElo "2190"]
[Annotator "NA"]
[PlyCount "120"]
[EventDate "2019.04.28"]
[EventType "tourn"]
[EventCountry "POL"]
[SourceTitle "playchess.com"]
[Source "ChessBase"]
[SourceQuality "1"]
[TimeControl "40/5400+30:900+30"]

1. e4 {[%emt 0:00:00]} c6 {[%emt 0:00:22]} 2. d4 {[%emt 0:00:00]} d5 {[%emt 0:00:03]} 3. exd5 {[%emt 0:00:13]} cxd5 {[%emt 0:00:06]} 4. Bd3 {[%emt 0:00:27]} Nc6 {[%emt 0:00:21]} 5. c3 {[%emt 0:00:19]} g6 {[%emt 0:03:08]} 6. Ne2 {[%emt 0:12:09]} Bf5 {[%emt 0:01:45]} 7. Bxf5 {[%emt 0:01:04]} gxf5 {[%emt 0:00:09]} 8. Bf4 {[%emt 0:05:42]} e6 {[%emt 0:02:33]} 9. Nd2 {[%emt 0:02:02]} Bd6 {[%emt 0:01:00]} 10. Nf3 {[%emt 0:02:23]} Qc7 {[%emt 0:02:49]} 11. g3 {[%emt 0:06:04]} Nf6 {[%emt 0:03:05]} 12. Bxd6 {[%emt 0:00:42]} Qxd6 {[%emt 0:00:07]} 13. Qd3 {[%emt 0:10:26]} Ne4 {[%emt 0:03:25]} 14. b4 {[%emt 0:08:22]} a5 {[%emt 0:10:02]} 15. b5 {[%emt 0:08:03]} Ne7 {[%emt 0:01:09]} 16. O-O {[%emt 0:07:02]} Rc8 {[%emt 0:03:15]} 17. Rfc1 {[%emt 0:02:58]} Qa3 {[%emt 0:09:10]} 18. Qe3 {[%emt 0:04:39]} h5 {[%emt 0:08:59]} 19. h4 {[%emt 0:07:07]} Ng6 {[%emt 0:02:07]} 20. Ng5 {[%emt 0:07:54]} Nxg5 {[%emt 0:04:48]} 21. Qxg5 {[%emt 0:00:14]} Qe7 {[%emt 0:00:36]} 22. Qe3 {[%emt 0:04:08]} Qf6 {[%emt 0:08:08]} 23. Nf4 {[%emt 0:03:11]} Nxf4 {[%emt 0:00:19]} 24. Qxf4 {[%emt 0:00:07]} Rg8 {[%emt 0:06:29]} 25. f3 {[%emt 0:06:10]} Kf8 26. Kh2 Kg7 27. Rab1 Rc4 28. b6 Rgc8 {[%emt 0:05:14]} 29. Rb5 {[%emt 0:02:28]} Ra4 {[%emt 0:02:55]} 30. Rb2 {[%emt 0:00:20]} Ra3 {[%emt 0:00:39]} 31. Rbc2 {[%emt 0:00:35]} Rc6 {[%emt 0:00:09]} 32. Qc7 f4 {[%emt 0:02:46]} 33. Qxb7 {[%emt 0:00:48]} fxg3+ {[%emt 0:02:11]} 34. Kxg3 {[%emt 0:00:05]} e5 {[%emt 0:00:35]} 35. Qb8 Qf4+ 36. Kh3 {[%emt 0:01:40]} Qxf3+ {[%emt 0:02:30]} 37. Kh2 {[%emt 0:00:04]} Qf4+ 38. Kh1 Rg6 39. Qxe5+ Qxe5 40. dxe5 Rxb6 {[%emt 0:00:00]} 41. Rd1 Rb5 42. Rg1+ Kf8 43. Rf1 Ra4 44. Rcf2 Rxh4+ 45. Kg2 Rg4+ 46. Kh3 Rb7 47. e6 Rg7 48. Rf5 Re7 49. Re1 Rg6 50. Rxd5 fxe6 51. Rxa5 Rc7 52. Re3 Rb7 53. Rxh5 Rb1 54. Kh2 Rb2+ 55. Kh3 Rxa2 56. Rg3 Rxg3+ 57. Kxg3 Ra3 58. Rc5 Ke7 59. Kf3 Kd6 60. Rc8 Ke5 {Ke4+} 1/2-1/2